fUSD/lending_fUSD_20260703
["ID","MTS","AMOUNT","RATE_DAILY","PERIOD"]
[426937589,1783029045000,-221.17458011,0.00033314,11]
[426937605,1783029045000,-300.0,0.00033459,2]
[426937606,1783029045000,-300.0,0.00033459,2]
[426937594,1783029045000,-618.0,0.0003342,120]
[426937596,1783029045000,-300.0,0.00033459,2]
[426937597,1783029045000,-1101.26754386,0.00033459,2]
[426937599,1783029045000,-300.0,0.00033459,2]
[426937600,1783029045000,-300.0,0.00033459,2]
[426937591,1783029045000,-300.0,0.00033376,7]
[426937572,1783029045000,-4190.0,0.00033,6]
[426937543,1783029045000,-20000.0,0.000324,2]
[426937571,1783029045000,-100033.03862114,0.00033,120]
[426937601,1783029045000,-300.0,0.00033459,2]
[426937553,1783029045000,-1000.0,0.00032877,10]
[426937554,1783029045000,-1000.0,0.00032877,10]
[426937546,1783029045000,-800.0,0.000325,5]
[426937544,1783029045000,-6532.1,0.00032408,14]
[426937548,1783029045000,-500.0,0.0003263,2]
[426937552,1783029045000,-315.0,0.00032862,3]
[426937549,1783029045000,-173.40636751,0.00032667,30]
[426937547,1783029045000,-299.86,0.00032624,3]
[426937551,1783029045000,-1825.54,0.000328,7]
[426937545,1783029045000,-800.0,0.000325,5]
[426937550,1783029045000,-151.0,0.00032762,2]
[426937555,1783029045000,-1000.0,0.00032877,10]
[426937574,1783029045000,-800.0,0.00033,5]
[426937566,1783029045000,-251.576064,0.00032877,7]
[426937557,1783029045000,-1000.0,0.00032877,10]
[426937558,1783029045000,-251.576064,0.00032877,7]
[426937567,1783029045000,-162.259372,0.00032877,120]
[426937559,1783029045000,-1000.0,0.00032877,10]
[426937565,1783029045000,-1000.0,0.00032877,10]
[426937560,1783029045000,-1000.0,0.00032877,10]
[426937561,1783029045000,-251.576064,0.00032877,7]
[426937564,1783029045000,-251.576064,0.00032877,7]
[426937563,1783029045000,-1000.0,0.00032877,10]
[426937562,1783029045000,-1000.0,0.00032877,10]
[426937568,1783029045000,-902.28,0.00032877,50]
[426937570,1783029045000,-800.0,0.00033,5]
[426937569,1783029045000,-28165.61332564,0.000329,2]
[426937556,1783029045000,-1000.0,0.00032877,10]
[426937598,1783029045000,-300.0,0.00033459,2]
[426937657,1783029045000,-584.85636615,0.00033459,2]
[426937602,1783029045000,-300.0,0.00033459,2]
[426937644,1783029045000,-564.57560998,0.00033459,2]
[426937642,1783029045000,-300.0,0.00033459,2]
[426937636,1783029045000,-300.0,0.00033459,2]
[426937645,1783029045000,-300.0,0.00033459,2]
[426937638,1783029045000,-300.0,0.00033459,2]
[426937641,1783029045000,-1807.51296116,0.00033459,2]
[426937639,1783029045000,-300.0,0.00033459,2]
[426937643,1783029045000,-300.0,0.00033459,2]
[426937647,1783029045000,-300.0,0.00033459,2]
[426937648,1783029045000,-311.25771399,0.00033459,2]
[426937646,1783029045000,-597.3150425,0.00033459,2]
[426937649,1783029045000,-523.77404803,0.00033459,2]
[426937650,1783029045000,-569.07827579,0.00033459,2]
[426937652,1783029045000,-300.0,0.00033459,2]
[426937651,1783029045000,-300.00000001,0.00033459,2]
[426937654,1783029045000,-300.0,0.00033459,2]
[426937666,1783029045000,-446.20103305,0.00033459,2]
[426937665,1783029045000,-300.0,0.00033459,2]
[426937656,1783029045000,-300.0,0.00033459,2]
[426937655,1783029045000,-514.02377053,0.00033459,2]
[426937662,1783029045000,-300.0,0.00033459,2]
[426937659,1783029045000,-454.31833835,0.00033459,2]
[426937664,1783029045000,-300.0,0.00033459,2]
[426937660,1783029045000,-300.0,0.00033459,2]
[426937661,1783029045000,-300.0,0.00033459,2]
[426937658,1783029045000,-300.0,0.00033459,2]
[426937604,1783029045000,-300.0,0.00033459,2]
[426937640,1783029045000,-954.40977015,0.00033459,2]
[426937637,1783029045000,-300.0,0.00033459,2]
[426937653,1783029045000,-300.0,0.00033459,2]
[426937633,1783029045000,-345.80256672,0.00033459,2]
[426937603,1783029045000,-300.0,0.00033459,2]
[426937634,1783029045000,-499.25094687,0.00033459,2]
[426937607,1783029045000,-300.0,0.00033459,2]
[426937614,1783029045000,-300.0,0.00033459,2]
[426937616,1783029045000,-300.0,0.00033459,2]
[426937613,1783029045000,-300.0,0.00033459,2]
[426937609,1783029045000,-300.0,0.00033459,2]
[426937615,1783029045000,-607.91868214,0.00033459,2]
[426937608,1783029045000,-300.0,0.00033459,2]
[426937611,1783029045000,-300.0,0.00033459,2]
[426937610,1783029045000,-495.35167751,0.00033459,2]
[426937612,1783029045000,-300.0,0.00033459,2]
[426937617,1783029045000,-300.0,0.00033459,2]
[426937619,1783029045000,-300.0,0.00033459,2]
[426937618,1783029045000,-300.0,0.00033459,2]
[426937663,1783029045000,-300.0,0.00033459,2]
[426937621,1783029045000,-730.2023839,0.00033459,2]
[426937635,1783029045000,-529.6723478,0.00033459,2]
[426937628,1783029045000,-300.0,0.00033459,2]
[426937623,1783029045000,-303.40388377,0.00033459,2]
[426937620,1783029045000,-536.83065571,0.00033459,2]
[426937629,1783029045000,-300.0,0.00033459,2]
[426937624,1783029045000,-300.0,0.00033459,2]
[426937626,1783029045000,-302.19910179,0.00033459,2]
[426937622,1783029045000,-300.0,0.00033459,2]
[426937631,1783029045000,-300.0,0.00033459,2]
[426937630,1783029045000,-300.0,0.00033459,2]
[426937632,1783029045000,-300.0,0.00033459,2]
[426937627,1783029045000,-300.0,0.00033459,2]
[426937625,1783029045000,-300.0,0.00033459,2]
[426937712,1783029046000,-300.0,0.00033459,2]
[426937707,1783029046000,-300.0,0.00033459,2]
[426937706,1783029046000,-300.0,0.00033459,2]
[426937704,1783029046000,-345.80256672,0.00033459,2]
[426937715,1783029046000,-597.3150425,0.00033459,2]
[426937703,1783029046000,-300.0,0.00033459,2]
[426937697,1783029046000,-302.19910179,0.00033459,2]
[426937702,1783029046000,-300.0,0.00033459,2]
[426937693,1783029046000,-300.0,0.00033459,2]
[426937699,1783029046000,-300.0,0.00033459,2]
[426937708,1783029046000,-300.0,0.00033459,2]
[426937705,1783029046000,-529.6723478,0.00033459,2]
[426937710,1783029046000,-1807.51296116,0.00033459,2]
[426937700,1783029046000,-300.0,0.00033459,2]
[426937709,1783029046000,-954.40977015,0.00033459,2]
[426937711,1783029046000,-300.0,0.00033459,2]
[426937713,1783029046000,-564.57560998,0.00033459,2]
[426937728,1783029046000,-300.0,0.00033459,2]
[426937724,1783029046000,-300.0,0.00033459,2]
[426937726,1783029046000,-300.0,0.00033459,2]
[426937729,1783029046000,-300.0,0.00033459,2]
[426937716,1783029046000,-300.0,0.00033459,2]
[426937720,1783029046000,-300.0,0.00033459,2]
[426937718,1783029046000,-300.0,0.00033459,2]
[426937721,1783029046000,-300.0,0.00033459,2]
[426937717,1783029046000,-311.25771399,0.00033459,2]
[426937723,1783029046000,-514.02377053,0.00033459,2]
[426937714,1783029046000,-300.0,0.00033459,2]
[426937722,1783029046000,-300.0,0.00033459,2]
[426937667,1783029046000,-300.0,0.00033459,2]
[426937701,1783029046000,-533.08251466,0.00033459,2]
[426937725,1783029046000,-584.85636615,0.00033459,2]
[426937668,1783029046000,-300.0,0.00033459,2]
[426937669,1783029046000,-1101.26754386,0.00033459,2]
[426937671,1783029046000,-300.0,0.00033459,2]
[426937670,1783029046000,-300.0,0.00033459,2]
[426937678,1783029046000,-300.0,0.00033459,2]
[426937673,1783029046000,-300.0,0.00033459,2]
[426937675,1783029046000,-300.0,0.00033459,2]
[426937672,1783029046000,-300.0,0.00033459,2]
[426937679,1783029046000,-300.0,0.00033459,2]
[426937677,1783029046000,-300.0,0.00033459,2]
[426937676,1783029046000,-300.0,0.00033459,2]
[426937674,1783029046000,-300.0,0.00033459,2]
[426937696,1783029046000,-310.7398426,0.00033459,2]
[426937681,1783029046000,-300.0,0.00033459,2]
[426937680,1783029046000,-304.4786586,0.00033459,2]
[426937684,1783029046000,-300.0,0.00033459,2]
[426937688,1783029046000,-472.35540435,0.00033459,2]
[426937682,1783029046000,-495.35167751,0.00033459,2]
[426937685,1783029046000,-300.0,0.00033459,2]
[426937683,1783029046000,-300.0,0.00033459,2]
[426937686,1783029046000,-607.91868214,0.00033459,2]
[426937690,1783029046000,-300.0,0.00033459,2]
[426937689,1783029046000,-548.38232264,0.00033459,2]
[426937687,1783029046000,-300.0,0.00033459,2]
[426937692,1783029046000,-730.2023839,0.00033459,2]
[426937695,1783029046000,-300.00000001,0.00033459,2]
[426937694,1783029046000,-303.40388377,0.00033459,2]
[426937691,1783029046000,-536.83065571,0.00033459,2]
[426937719,1783029046000,-569.07827579,0.00033459,2]
[426937698,1783029046000,-300.0,0.00033459,2]
[426937732,1783029046000,-300.0,0.00033459,2]
[426937763,1783029046000,-174.44,0.0003359,30]
[426937765,1783029046000,-2195.10907467,0.00033595,30]
[426937759,1783029046000,-1239.47165787,0.000335,2]
[426937762,1783029046000,-171.35,0.00033552,2]
[426937766,1783029046000,-432.01,0.00033643,3]
[426937769,1783029046000,-1825.54,0.000337,7]
[426937771,1783029046000,-500.0,0.00033857,30]
[426937772,1783029046000,-939.266,0.00033857,30]
[426937773,1783029046000,-200.0,0.000339,12]
[426937770,1783029046000,-10084.28,0.00033709,7]
[426937774,1783029046000,-13309.59647954,0.0003392,2]
[426937775,1783029046000,-663.0,0.00033943,120]
[426937780,1783029046000,-2380.0,0.00033963,120]
[426937758,1783029046000,-800.0,0.000335,5]
[426937778,1783029046000,-2380.0,0.00033953,120]
[426937776,1783029046000,-2380.0,0.00033943,120]
[426937777,1783029046000,-663.0,0.00033953,120]
[426937782,1783029046000,-500.0,0.00033973,7]
[426937781,1783029046000,-500.0,0.00033973,7]
[426937785,1783029046000,-500.0,0.00033973,7]
[426937787,1783029046000,-500.0,0.00033973,7]
[426937784,1783029046000,-500.0,0.00033973,7]
[426937791,1783029046000,-500.0,0.00033973,7]
[426937783,1783029046000,-500.0,0.00033973,7]
[426937789,1783029046000,-500.0,0.00033973,7]
[426937788,1783029046000,-500.0,0.00033973,7]
[426937790,1783029046000,-500.0,0.00033973,7]
[426937727,1783029046000,-454.31833835,0.00033459,2]
[426937779,1783029046000,-663.0,0.00033963,120]
[426937764,1783029046000,-174.44,0.0003359,30]
[426937786,1783029046000,-500.0,0.00033973,7]
[426937756,1783029046000,-893.08,0.00033476,2]
[426937760,1783029046000,-800.0,0.000335,5]
[426937734,1783029046000,-446.20103305,0.00033459,2]
[426937730,1783029046000,-300.0,0.00033459,2]
[426937733,1783029046000,-300.0,0.00033459,2]
[426937731,1783029046000,-300.0,0.00033459,2]
[426937742,1783029046000,-748.4983794,0.00033462,60]
[426937741,1783029046000,-358.4210542,0.00033462,60]
[426937738,1783029046000,-515.55098414,0.00033459,2]
[426937740,1783029046000,-500.0,0.0003346,60]
[426937735,1783029046000,-300.0,0.00033459,2]
[426937736,1783029046000,-300.0,0.00033459,2]
[426937739,1783029046000,-300.0,0.00033459,2]
[426937751,1783029046000,-3433.0,0.00033464,10]
[426937747,1783029046000,-249.0017556,0.00033462,60]
[426937737,1783029046000,-1101.26754386,0.00033459,2]
[426937752,1783029046000,-169.81,0.00033465,120]
[426937744,1783029046000,-649.2014577,0.00033462,60]
[426937768,1783029046000,-2337.0,0.00033664,11]
[426937757,1783029046000,-161.0,0.00033488,11]
[426937753,1783029046000,-358.0,0.00033476,14]
[426937754,1783029046000,-358.0,0.00033476,14]
[426937750,1783029046000,-367.05313802,0.00033464,14]
[426937767,1783029046000,-6532.1,0.00033648,14]
[426937755,1783029046000,-1339.63,0.00033476,2]
[426937745,1783029046000,-292.9445201,0.00033462,60]
[426937746,1783029046000,-243.0690201,0.00033462,60]
[426937743,1783029046000,-500.0,0.00033462,60]
[426937761,1783029046000,-502.0,0.00033535,17]
[426937748,1783029046000,-812.0,0.00033464,2]
[426937749,1783029046000,-1166.42,0.00033464,4]
[426937827,1783029047000,-419.56,0.00034663,3]
[426937822,1783029047000,-6896.2026673,0.00034571,2]
[426937823,1783029047000,-5000.0,0.00034571,2]
[426937821,1783029047000,-800.0,0.000345,7]
[426937825,1783029047000,-5000.0,0.00034571,2]
[426937833,1783029047000,-438.15,0.00034788,41]
[426937828,1783029047000,-1825.54,0.000347,7]
[426937829,1783029047000,-1722.47016,0.000347,120]
[426937826,1783029047000,-5000.0,0.00034571,2]
[426937834,1783029047000,-1500.0,0.00034795,2]
[426937819,1783029047000,-216.0,0.00034439,2]
[426937824,1783029047000,-5000.0,0.00034571,2]
[426937837,1783029047000,-600.92514696,0.00034802,2]
[426937830,1783029047000,-1626.07,0.00034709,7]
[426937831,1783029047000,-8819.38890027,0.0003478,7]
[426937844,1783029047000,-600.92514696,0.000349,2]
[426937839,1783029047000,-2337.0,0.00034805,11]
[426937841,1783029047000,-663.08981562,0.0003488,120]
[426937846,1783029047000,-500.0,0.0003497,2]
[426937836,1783029047000,-1212.0,0.000348,2]
[426937843,1783029047000,-6532.1,0.00034887,14]
[426937835,1783029047000,-8106.0,0.000348,2]
[426937820,1783029047000,-29397.76688004,0.000345,10]
[426937842,1783029047000,-442.0,0.00034887,30]
[426937832,1783029047000,-151.39,0.00034788,41]
[426937818,1783029047000,-955.614,0.00034439,2]
[426937799,1783029047000,-800.0,0.00034,7]
[426937817,1783029047000,-6089.0,0.00034439,2]
[426937838,1783029047000,-5150.0,0.00034803,10]
[426937792,1783029047000,-500.0,0.00033973,7]
[426937793,1783029047000,-500.0,0.00033973,7]
[426937794,1783029047000,-500.0,0.00033973,7]
[426937796,1783029047000,-500.0,0.00033973,7]
[426937798,1783029047000,-71245.94006153,0.00034,2]
[426937797,1783029047000,-617.98708688,0.00033973,7]
[426937802,1783029047000,-5073.25041755,0.00034,120]
[426937803,1783029047000,-150.0,0.00034002,2]
[426937806,1783029047000,-152.0,0.00034086,7]
[426937804,1783029047000,-1626.07,0.00034024,7]
[426937815,1783029047000,-1362.0,0.00034439,2]
[426937805,1783029047000,-151.0,0.00034086,7]
[426937801,1783029047000,-158.92821099,0.00034,14]
[426937800,1783029047000,-1608.26009265,0.00034,2]
[426937813,1783029047000,-3566.0,0.00034439,2]
[426937807,1783029047000,-200.0,0.000341,13]
[426937814,1783029047000,-1278.0,0.00034439,2]
[426937809,1783029047000,-425.95,0.00034268,7]
[426937808,1783029047000,-2337.0,0.00034128,11]
[426937810,1783029047000,-45776.0,0.00034293,20]
[426937812,1783029047000,-231.3,0.000344,7]
[426937816,1783029047000,-223.0,0.00034439,2]
[426937811,1783029047000,-10084.28,0.00034394,7]
[426937795,1783029047000,-500.0,0.00033973,7]
[426937840,1783029047000,-327.89,0.00034834,120]
[426937859,1783029047000,-22500.0,0.00035,2]
[426937847,1783029047000,-381.52093219,0.00034999,10]
[426937874,1783029047000,-498.03499423,0.00035,7]
[426937878,1783029047000,-1368.62423063,0.00035,7]
[426937877,1783029047000,-10121.19455735,0.00035,30]
[426937876,1783029047000,-288.29569325,0.00035,120]
[426937875,1783029047000,-201139.4909951,0.00035,10]
[426937884,1783029047000,-2380.0,0.0003517,120]
[426937883,1783029047000,-22500.0,0.00035125,2]
[426937886,1783029047000,-600.92514696,0.00035173,2]
[426937885,1783029047000,-663.0,0.0003517,120]
[426937893,1783029047000,-663.0,0.0003519,120]
[426937892,1783029047000,-2380.0,0.0003519,120]
[426937889,1783029047000,-170.06810672,0.00035181,2]
[426937845,1783029047000,-800.0,0.00034929,120]
[426937887,1783029047000,-2380.0,0.0003518,120]
[426937890,1783029047000,-151.0,0.00035184,14]
[426937891,1783029047000,-22500.0,0.00035188,2]
[426937894,1783029047000,-22500.0,0.0003525,2]
[426937896,1783029047000,-158.70398359,0.00035266,7]
[426937902,1783029047000,-500.0,0.00035291,120]
[426937899,1783029047000,-500.0,0.00035291,120]
[426937897,1783029047000,-500.0,0.00035291,120]
[426937898,1783029047000,-500.0,0.00035291,120]
[426937901,1783029047000,-500.0,0.00035291,7]
[426937900,1783029047000,-1000.0,0.00035291,2]
[426937895,1783029047000,-208.27215767,0.0003526,30]
[426937880,1783029047000,-200.0,0.000351,14]
[426937873,1783029047000,-21858.61884459,0.00035,120]
[426937888,1783029047000,-663.0,0.0003518,120]
[426937879,1783029047000,-22500.0,0.00035062,2]
[426937848,1783029047000,-2716.36663526,0.00034999,2]
[426937872,1783029047000,-4106.01184769,0.00035,120]
[426937851,1783029047000,-302.2819,0.00035,2]
[426937849,1783029047000,-31490.90138361,0.00034999,14]
[426937856,1783029047000,-22499.99,0.00035,2]
[426937852,1783029047000,-1500.0,0.00035,2]
[426937855,1783029047000,-19365.73313389,0.00035,2]
[426937853,1783029047000,-1500.0,0.00035,2]
[426937857,1783029047000,-22499.99,0.00035,2]
[426937854,1783029047000,-1500.0,0.00035,2]
[426937860,1783029047000,-541.79505674,0.00035,7]
[426937869,1783029047000,-44466.17,0.00035,15]
[426937850,1783029047000,-1500.0,0.00035,2]
[426937858,1783029047000,-22499.99,0.00035,2]
[426937881,1783029047000,-187.27,0.0003511,30]
[426937882,1783029047000,-208.27215767,0.00035123,30]
[426937861,1783029047000,-1500.0,0.00035,2]
[426937871,1783029047000,-419.27000163,0.00035,120]
[426937870,1783029047000,-221.51027254,0.00035,30]
[426937864,1783029047000,-4250.92914416,0.00035,7]
[426937868,1783029047000,-6298.95861685,0.00035,10]
[426937867,1783029047000,-31086.03242333,0.00035,2]
[426937866,1783029047000,-1608.0,0.00035,30]
[426937865,1783029047000,-800.0,0.00035,7]
[426937863,1783029047000,-1500.0,0.00035,2]
[426937923,1783029048000,-201.49498663,0.000353,120]
[426937922,1783029048000,-2500.0,0.000353,14]
[426937925,1783029048000,-215.49010706,0.000353,120]
[426937920,1783029048000,-187.60966566,0.000353,120]
[426937921,1783029048000,-160.54293176,0.000353,120]
[426937924,1783029048000,-227.89821908,0.000353,120]
[426937927,1783029048000,-22500.0,0.00035313,2]
[426937928,1783029048000,-231.028871,0.00035322,120]
[426937936,1783029048000,-243.0690201,0.00035322,120]
[426937930,1783029048000,-167.9096101,0.00035322,120]
[426937918,1783029048000,-177.86004915,0.000353,120]
[426937931,1783029048000,-358.4210541,0.00035322,120]
[426937926,1783029048000,-242.80709732,0.00035311,2]
[426937919,1783029048000,-186.89504541,0.000353,120]
[426937905,1783029048000,-186.03868974,0.000353,120]
[426937917,1783029048000,-162.57400678,0.000353,120]
[426937915,1783029048000,-169.8453087,0.000353,120]
[426937914,1783029048000,-183.54174638,0.000353,120]
[426937913,1783029048000,-199.67897868,0.000353,120]
[426937912,1783029048000,-200.0,0.000353,120]
[426937910,1783029048000,-188.92540657,0.000353,120]
[426937908,1783029048000,-172.22374087,0.000353,120]
[426937909,1783029048000,-174.47757693,0.000353,120]
[426937911,1783029048000,-167.063269,0.000353,120]
[426937907,1783029048000,-597.95420763,0.000353,120]
[426937906,1783029048000,-190.95961088,0.000353,120]
[426937904,1783029048000,-45776.0,0.00035292,20]
[426937903,1783029048000,-500.0,0.00035291,7]
[426937933,1783029048000,-500.0,0.00035322,120]
[426937916,1783029048000,-173.45250247,0.000353,120]
[426937932,1783029048000,-748.4983793,0.00035322,120]
[426937929,1783029048000,-214.3227063,0.00035322,120]
[426937934,1783029048000,-649.2014576,0.00035322,120]
[426937937,1783029048000,-249.0017555,0.00035322,120]
[426937966,1783029048000,-2133.9295596,0.000355,2]
[426937963,1783029048000,-600.92514696,0.00035445,2]
[426937964,1783029048000,-1661.79829553,0.000355,30]
[426937965,1783029048000,-14254.99226731,0.000355,2]
[426937961,1783029048000,-8430.35039062,0.00035438,2]
[426937959,1783029048000,-2337.0,0.00035258,11]
[426937960,1783029048000,-161.0,0.00035384,11]
[426937958,1783029048000,-300.0,0.00033459,2]
[426937956,1783029048000,-151.0,0.00032,7]
[426937957,1783029048000,-300.0,0.00033459,2]
[426937955,1783029048000,-11790.16288755,0.00035438,2]
[426937954,1783029048000,-465.20947077,0.00035438,2]
[426937953,1783029048000,-1814.27725106,0.00035438,2]
[426937951,1783029048000,-208.27215767,0.00035397,30]
[426937962,1783029048000,-573.3506609,0.00035438,10]
[426937949,1783029048000,-153.0,0.00035371,7]
[426937952,1783029048000,-2027.81806257,0.00035423,15]
[426937939,1783029048000,-150.0,0.00035323,5]
[426937935,1783029048000,-292.94452,0.00035322,120]
[426937940,1783029048000,-1524.0,0.00035323,7]
[426937938,1783029048000,-483.0,0.00035323,7]
[426937941,1783029048000,-300.0,0.00035323,2]
[426937945,1783029048000,-200.0,0.00035349,5]
[426937948,1783029048000,-187.27,0.0003537,54]
[426937943,1783029048000,-258.17483198,0.00035342,2]
[426937947,1783029048000,-255.10216008,0.00035358,14]
[426937944,1783029048000,-200.0,0.00035349,5]
[426937942,1783029048000,-368.84,0.00035323,2]
[426937946,1783029048000,-200.0,0.00035349,5]
[426937950,1783029048000,-22500.0,0.00035375,2]
[426937972,1783029049000,-513.85429265,0.00033459,2]
[426937980,1783029049000,-500.0,0.00035552,60]
[426937979,1783029049000,-312.21,0.0003555,7]
[426937973,1783029049000,-2034.90482189,0.000355,2]
[426937970,1783029049000,-151.0,0.00032,7]
[426937974,1783029049000,-800.0,0.000355,7]
[426937967,1783029049000,-1140.341443,0.000355,2]
[426937968,1783029049000,-2935.8319082,0.000355,2]
[426937971,1783029049000,-300.0,0.00033459,2]
[426937981,1783029049000,-500.0,0.00035552,60]
[426937969,1783029049000,-2900.19,0.00027397,10]
[426937984,1783029049000,-152.0,0.0003556,7]
[426937977,1783029049000,-161.0,0.00035535,11]
[426937976,1783029049000,-208.27215767,0.00035534,30]
[426937978,1783029049000,-158.70398359,0.0003554,7]
[426937983,1783029049000,-151.0,0.0003556,7]
[426937982,1783029049000,-500.0,0.00035552,60]
[426937985,1783029049000,-12152.71858795,0.00035563,2]
[426937988,1783029049000,-180.94,0.00027796,30]
[426937986,1783029049000,-164.48,0.00024658,2]
[426937989,1783029049000,-145.10362375,0.00027894,2]
[426937987,1783029049000,-164.41,0.00027787,30]
[426937975,1783029049000,-879.431,0.00035501,90]
[426937990,1783029050000,-74.19637625,0.00027894,2]
[426937992,1783029050000,-164.49,0.00029,7]
[426937993,1783029050000,-43.33362375,0.00029,2]
[426937994,1783029050000,-177.0,0.00019389,2]
[426937991,1783029050000,-180.94,0.00029,7]
[426937996,1783029061000,-577.69641828,0.00019389,2]
[426937999,1783029071000,143.9243482,0.0001471,2]
[426937998,1783029071000,388.12876403,0.0001471,2]
[426937997,1783029071000,220.26572649,0.0001471,2]
[426938008,1783029647000,-1363.18390931,0.00014055,2]
[426938005,1783029647000,-1000.0,0.00013982,2]
[426938007,1783029647000,-250.0,0.00013983,2]
[426938006,1783029647000,-1000.0,0.00013982,2]
[426938004,1783029647000,-1000.0,0.00013982,2]
[426938011,1783029804000,-1000.0,0.00013982,2]
[426938010,1783029804000,-1000.0,0.00013982,2]
[426938012,1783029804000,-1000.0,0.00013982,2]
[426938014,1783029804000,-208.56642661,0.00014199,2]
[426938013,1783029804000,-1791.43357339,0.00014018,2]
[426938060,1783030231000,-368.41083131,0.00018705,2]
[426938053,1783030231000,-3687.5,0.00018549,2]
[426938050,1783030231000,-4000.0,0.00018472,2]
[426938057,1783030231000,-839.23,0.00018657,2]
[426938056,1783030231000,-2607.96,0.00018633,2]
[426938058,1783030231000,-1623.12,0.00018696,2]
[426938059,1783030231000,-151.47,0.00018705,2]
[426938069,1783030231000,-488.60576242,0.00019793,2]
[426938061,1783030231000,-150.0,0.00018761,2]
[426938063,1783030231000,-183.97,0.00018979,2]
[426938064,1783030231000,-166.66,0.00019241,2]
[426938068,1783030231000,-2191.9981204,0.00019599,2]
[426938066,1783030231000,-4000.0,0.00019396,2]
[426938067,1783030231000,-500.0,0.00019524,2]
[426938055,1783030231000,-150.0,0.00018571,2]
[426938065,1783030231000,-149.30358172,0.00019389,2]
[426938062,1783030231000,-4000.0,0.00018934,2]
[426938052,1783030231000,-250.0,0.00018546,2]
[426938043,1783030231000,-255.0,0.00016123,2]
[426938048,1783030231000,-1000.0,0.00018378,2]
[426938033,1783030231000,-542.25996341,0.00014199,2]
[426938035,1783030231000,-1648.11888752,0.00014599,2]
[426938042,1783030231000,-296.7201945,0.00016018,2]
[426938040,1783030231000,-77.26688924,0.00015619,2]
[426938034,1783030231000,-614.31250092,0.00014199,2]
[426938039,1783030231000,-577.69641828,0.00015619,2]
[426938041,1783030231000,-172.73311076,0.00015619,2]
[426938046,1783030231000,-200.0,0.00018345,2]
[426938036,1783030231000,-171.35,0.00014659,2]
[426938037,1783030231000,-300.0,0.00014998,2]
[426938044,1783030231000,-905.0,0.00018047,2]
[426938045,1783030231000,-899.0,0.00018047,2]
[426938047,1783030231000,-3412.86,0.00018352,2]
[426938054,1783030231000,-168.84,0.00018566,2]
[426938049,1783030231000,-200.0,0.00018384,2]
[426938051,1783030231000,-1021.38,0.00018483,2]
[426938038,1783030231000,-150.0,0.00014998,2]
[426938070,1783030231000,-4000.0,0.00019857,2]
[426938078,1783030231000,-305.97166741,0.00019996,2]
[426938073,1783030231000,-1843.30417601,0.000199,2]
[426938093,1783030231000,-500.0,0.00020095,2]
[426938096,1783030231000,-500.0,0.00020095,2]
[426938097,1783030231000,-500.0,0.00020095,2]
[426938094,1783030231000,-500.0,0.00020095,2]
[426938103,1783030231000,-346.73581747,0.00020096,2]
[426938105,1783030231000,-500.0,0.00020096,2]
[426938106,1783030231000,-500.0,0.00020096,2]
[426938095,1783030231000,-500.0,0.00020095,2]
[426938108,1783030231000,-478.96460152,0.00020096,2]
[426938107,1783030231000,-500.0,0.00020096,2]
[426938109,1783030231000,-500.0,0.00020096,2]
[426938110,1783030231000,-500.0,0.00020096,2]
[426938114,1783030231000,-500.0,0.00020096,2]
[426938111,1783030231000,-500.0,0.00020096,2]